bitfinex/quotes_ETHUSD_20241225
["timestamp","ask_amount","ask_price","bid_price","bid_amount"]
[1735160967559,0.760475,3474.5,3474.0,0.8138]
[1735160968106,2.30209,3475.2,3474.0,0.8138]
[1735160968291,2.30224,3474.9,3474.0,0.8138]
[1735160969078,2.30236,3474.7,3474.0,0.8138]
[1735160969286,2.30242,3474.6,3474.0,0.8138]
[1735160969593,2.44439127,3475.9,3472.8,0.41007686]
[1735160969594,2.30229,3474.8,3473.2,3.0]
[1735160969899,0.312549,3474.7,3473.6,0.7911]
[1735160970100,0.8232,3475.2,3473.6,0.7911]
[1735160970396,2.30263,3474.3,3473.6,0.7911]
[1735160970599,3.8232,3475.6,3473.8,0.7911]
[1735160970753,2.30246,3474.6,3473.8,0.7911]
[1735160971159,2.30257,3474.4,3473.8,0.7911]
[1735160972513,0.230257,3474.4,3473.8,0.7911]
[1735160972814,2.30315,3473.5,3472.8,0.7911]
[1735160973762,2.30315,3473.5,3471.6,8.82]
[1735160973763,0.230257,3474.4,3472.9,3.32907706]
[1735160973957,2.30279,3474.1,3473.1,0.7911]
[1735160974573,3.0,3474.4,3473.1,0.7911]
[1735160974574,2.30261,3474.4,3473.3,3.30028513]
[1735160974814,2.30264,3474.3,3473.4,0.7911]
[1735160975009,3.0,3474.7,3473.4,0.7911]
[1735160975173,2.30269,3474.2,3473.4,0.7911]
[1735160978795,2.3032,3473.5,3473.0,0.7911]
[1735160978999,5.30255,3474.4,3473.0,0.7911]
[1735160979220,0.8232,3473.8,3472.6,0.7911]
[1735160979517,2.30336,3473.2,3472.6,0.7911]
[1735160980292,2.30343,3473.1,3472.6,0.7911]
[1735160980742,0.230343,3473.1,3472.6,0.7911]
[1735160981048,1.053543,3473.1,3472.2,0.7911]
[1735160981597,5.30348,3473.0,3472.2,0.7911]
[1735160981832,5.30348,3473.0,3471.6,0.7911]
[1735160982546,3.0,3473.6,3472.2,0.7911]
[1735160982843,0.91682816,3473.5,3472.2,0.7911]
[1735160983586,2.30376,3472.6,3472.2,0.7911]
[1735160983747,2.30361,3472.9,3472.2,0.7911]
[1735160984128,2.30365,3472.8,3472.2,0.7911]
[1735160985733,4.4160787,3473.5,3472.2,0.7911]
[1735160985929,1.00333545,3473.4,3472.2,0.7911]
[1735160986431,2.30347,3473.1,3472.2,0.7911]
[1735160986679,2.30352,3473.0,3472.2,0.7911]
[1735160988045,1.00333545,3473.4,3471.8,3.0]
[1735160988046,0.55,3473.1,3471.8,0.7546]
[1735160988282,0.55,3473.1,3471.4,1.95460216]
[1735160988283,3.0,3472.3,3471.4,1.95460216]
[1735160988874,2.30409,3472.1,3471.4,1.95460216]
[1735160989733,2.30417,3472.0,3471.4,0.7546]
[1735160991445,2.30386,3472.5,3471.4,0.7546]
[1735160991753,2.30396,3472.3,3471.5,0.7546]
[1735160991949,2.96019449,3472.8,3471.5,0.7546]
[1735160992172,2.30409,3472.1,3471.5,0.7546]
[1735160992376,0.806,3472.7,3471.5,0.7546]
[1735160992577,2.3043,3471.8,3471.5,0.7546]
[1735160993092,3.0,3472.5,3471.2,0.7546]
[1735160993291,2.30448,3471.5,3471.2,0.7546]
[1735160993643,2.30454,3471.4,3471.2,0.7546]
[1735160995798,2.30487,3471.0,3470.2,0.7546]
[1735160996090,0.57312503,3472.0,3470.2,0.7546]
[1735160996091,2.30495,3470.8,3470.2,0.7546]
[1735160996390,2.30461,3471.3,3470.2,0.7546]
[1735160996391,2.30508,3470.6,3470.2,0.7546]
[1735160998703,0.806,3471.5,3470.2,0.7546]
[1735160998903,2.30428,3471.8,3470.6,0.7546]
[1735160999199,3.0,3471.7,3470.6,0.7546]
[1735160999406,2.3045,3471.5,3470.6,1.39060851]
[1735160999544,2.30435,3471.7,3470.7,0.8088]
[1735161001102,3.0,3472.0,3470.7,0.8088]
[1735161001397,3.0,3471.9,3470.7,0.8088]
[1735161001578,3.06509,3472.3,3470.7,0.8088]
[1735161001783,3.3676064,3472.2,3470.9,0.8088]
[1735161001984,2.30435,3471.7,3470.9,0.8088]
[1735161004002,3.0,3472.1,3470.9,0.8088]
[1735161004326,3.0,3472.1,3469.8,0.8088]
[1735161004327,3.06545,3471.7,3469.8,0.8088]
[1735161004488,2.30491,3470.9,3469.8,0.8088]
[1735161004695,2.30515,3470.5,3469.8,0.8088]
[1735161005444,2.305,3470.8,3469.8,0.8088]
[1735161005591,3.7611,3471.4,3470.0,0.8088]
[1735161005783,2.30487,3470.9,3470.0,0.8088]
[1735161006126,3.0,3471.3,3470.0,1.45027451]
[1735161006297,2.30513,3470.6,3470.0,0.8088]
[1735161006630,3.457904,3471.0,3470.0,0.8088]
[1735161006631,2.30524,3470.4,3470.0,0.8088]
[1735161007239,2.30508,3470.6,3470.0,0.8088]
[1735161007591,2.30516,3470.5,3470.0,0.8088]
[1735161008979,0.230516,3470.5,3470.0,0.8088]
[1735161009184,2.30507,3470.6,3469.6,0.8088]
[1735161009430,2.30535,3470.2,3469.6,0.8088]
[1735161009902,3.0,3470.6,3469.6,0.8088]
[1735161010232,3.0,3470.9,3469.7,0.02882085]
[1735161010420,1.914154,3471.0,3469.8,0.8088]
[1735161010421,2.30509,3470.6,3469.8,0.8088]
[1735161010612,2.30487,3470.9,3469.8,0.8088]
[1735161011003,2.30494,3470.8,3469.8,0.8088]
[1735161011314,3.0,3470.6,3469.8,0.8088]
[1735161011514,2.30532,3470.3,3469.0,0.8088]
[1735161011714,2.30558,3469.9,3469.0,0.8088]
[1735161013415,2.30537,3470.2,3468.9,3.30028513]
[1735161013599,3.0,3470.4,3469.1,0.8088]
[1735161013800,2.30547,3470.1,3469.2,0.41090851]
[1735161014520,2.30547,3470.1,3469.3,0.8056]
[1735161014930,2.3055,3470.0,3469.3,0.8056]
[1735161015137,2.30567,3469.7,3469.3,0.8056]
[1735161015454,2.30594,3469.3,3468.9,0.8056]
[1735161015618,2.30581,3469.5,3468.9,0.8056]
[1735161015801,0.92058598,3471.3,3468.9,0.8056]
[1735161015802,3.0,3470.4,3468.9,0.8056]
[1735161016008,2.30536,3470.2,3469.1,0.8056]
[1735161016348,2.30554,3469.9,3469.2,0.64119951]
[1735161017017,2.30554,3469.9,3469.1,3.45818482]
[1735161017018,5.30521,3470.4,3469.1,0.8056]
[1735161017222,2.3055,3470.0,3469.1,0.8056]
[1735161017436,2.30571,3469.7,3469.1,0.8056]
[1735161017842,2.30575,3469.6,3469.1,0.8056]
[1735161018052,5.30527,3470.3,3469.1,0.8056]
[1735161018255,2.30587,3469.4,3469.1,0.8056]
[1735161018454,2.30572,3469.7,3469.1,0.8056]
[1735161018839,2.30582,3469.5,3469.1,0.8056]
[1735161019039,3.8029,3470.1,3469.1,0.8056]
[1735161019040,2.3056,3469.8,3469.1,0.8056]
[1735161019357,2.30579,3469.6,3469.1,0.8056]
[1735161019524,0.8029,3470.1,3469.1,0.8056]
[1735161019722,2.30586,3469.5,3469.1,0.8056]
[1735161021976,0.8029,3469.7,3468.5,0.8056]
[1735161022142,3.0,3469.6,3468.5,0.8056]
[1735161023057,2.30593,3469.4,3468.5,0.8056]
[1735161023376,2.30594,3469.3,3468.6,35.0]
[1735161023596,2.30594,3469.3,3468.6,37.84628631]
[1735161024077,3.0,3469.8,3468.6,35.0]
[1735161024248,2.30624,3468.9,3468.5,0.8056]
[1735161024572,0.8029,3469.8,3468.5,0.8056]
[1735161024573,2.30634,3468.7,3468.5,0.8056]
[1735161024779,2.30634,3468.7,3468.0,35.8056]
[1735161025281,0.8029,3469.0,3468.0,35.8056]
[1735161025450,2.30639,3468.7,3468.0,35.8056]
[1735161025774,5.30587,3469.4,3468.0,37.84628631]
[1735161025979,2.30574,3469.6,3468.4,0.8056]
[1735161026130,2.30572,3469.7,3468.4,0.8056]
[1735161026331,2.306,3469.2,3468.4,0.8056]
[1735161026538,2.30619,3469.0,3468.5,35.0]
[1735161026775,2.306,3469.3,3468.5,35.0]
[1735161026993,0.310862,3469.6,3468.5,35.0]
[1735161026994,2.30604,3469.2,3468.5,35.0]
[1735161029286,2.3058,3469.5,3468.5,35.0]
[1735161029450,2.30605,3469.2,3468.5,35.0]
[1735161030810,5.48214664,3470.0,3468.8,0.7996]
[1735161031015,2.3057,3469.7,3468.8,0.7996]
[1735161031168,5.48214664,3470.0,3468.8,0.7996]
[1735161031371,2.30574,3469.6,3468.8,0.7996]
[1735161031561,2.30574,3469.6,3468.8,3.64588631]
[1735161032577,0.7824,3470.4,3468.9,0.7996]
[1735161032819,3.7824,3470.7,3469.2,0.7996]
[1735161032970,0.7824,3470.7,3469.2,0.7996]
[1735161033173,2.30543,3470.1,3469.3,0.7996]
[1735161034422,0.78426256,3470.6,3469.3,0.7996]
[1735161034586,2.30554,3469.9,3469.3,0.7996]
[1735161036580,2.30554,3469.9,3469.4,35.0]
[1735161037524,2.30554,3469.9,3469.3,0.7996]
[1735161038286,2.30554,3469.9,3469.4,0.38823501]
[1735161038936,3.0,3470.3,3469.3,0.7996]
[1735161039085,2.30577,3469.6,3469.3,0.7996]
[1735161039795,2.30577,3469.6,3468.7,2.65258482]
[1735161039796,2.30587,3469.4,3468.8,0.7996]
[1735161040797,0.7824,3470.0,3468.8,0.7996]
[1735161040997,2.30567,3469.7,3469.0,0.7996]
[1735161041434,2.30567,3469.7,3469.0,35.7996]
[1735161042652,2.30555,3469.9,3469.0,35.7996]
[1735161042832,5.30534,3470.2,3469.0,35.7996]
[1735161043153,2.3054,3470.1,3469.0,35.7996]
[1735161043461,2.30562,3469.8,3469.0,35.7996]
[1735161045259,3.0,3470.2,3469.0,35.7996]
[1735161045551,2.30531,3470.3,3469.2,0.8273]
[1735161045724,2.3052,3470.4,3469.4,0.8273]
[1735161046141,2.3052,3470.4,3469.5,35.0]
[1735161046335,2.3052,3470.4,3469.5,37.84628631]
[1735161046740,4.07763214,3470.5,3469.5,35.0]
[1735161047056,2.30562,3469.8,3469.4,0.8273]
[1735161048243,2.30574,3469.6,3469.4,0.8273]
[1735161049830,5.3054,3470.1,3469.4,0.8273]
[1735161050046,2.3056,3469.9,3469.4,0.8273]
[1735161051067,1.19605054,3470.1,3469.4,0.8273]
[1735161051449,1.19605054,3470.1,3469.5,0.34502766]
[1735161051785,1.19605054,3470.1,3469.5,0.31620888]
[1735161052067,1.19605054,3470.1,3469.6,35.0]
[1735161052462,1.19605054,3470.1,3469.4,0.8273]
[1735161052661,2.30571,3469.7,3469.4,0.8273]
[1735161052817,0.785,3470.0,3469.1,0.807]
[1735161053016,2.30587,3469.4,3469.1,0.807]
[1735161054823,2.30575,3469.6,3469.1,0.807]
[1735161055290,2.30575,3469.6,3469.2,35.0]
[1735161055489,2.30587,3469.4,3469.2,35.0]
[1735161056386,1.7688276,3469.8,3469.2,35.0]
[1735161056550,2.30594,3469.3,3468.5,0.807]
[1735161057052,2.30594,3469.3,3468.6,35.0]
[1735161057492,0.785,3469.2,3468.6,35.0]
[1735161057813,2.30653,3468.4,3468.3,1.20000216]
[1735161058009,2.537183,3468.4,3468.3,1.20000216]
[1735161058304,2.30653,3468.4,3468.1,1.20000216]
[1735161059496,2.30653,3468.4,3467.8,0.807]
[1735161060001,2.89298896,3468.6,3467.8,0.807]
[1735161060168,2.30641,3468.6,3467.8,0.807]
[1735161060497,1.19605054,3468.8,3467.8,0.807]
[1735161060702,2.30647,3468.5,3467.8,0.807]
[1735161061257,1.19605054,3468.9,3467.9,0.7686]
[1735161061457,1.19605054,3468.9,3467.4,1.20000216]
[1735161061653,2.30713,3467.5,3467.4,1.20000216]
[1735161062074,2.30713,3467.5,3467.4,1.80000324]
[1735161062514,6.068541,3467.5,3467.4,1.80000324]
[1735161062719,6.848241,3467.5,3467.4,1.80000324]
[1735161063327,3.08669,3467.8,3467.4,1.80000324]
[1735161063506,2.30699,3467.8,3467.4,1.80000324]
[1735161063815,1.42370963,3467.5,3466.7,0.7686]
[1735161064018,1.42370963,3467.5,3466.9,3.42118482]
[1735161064179,1.42370963,3467.5,3467.1,0.7686]
[1735161065217,2.30677,3468.1,3467.1,0.7686]
[1735161066819,3.08623,3468.5,3467.1,0.7686]
[1735161066820,2.30653,3468.4,3467.1,0.7686]
[1735161067027,2.30675,3468.1,3467.1,0.7686]
[1735161067322,1.010375,3468.0,3467.1,0.7686]
[1735161067524,2.30731,3467.3,3466.7,0.7686]
[1735161068728,3.0,3467.6,3466.7,0.7686]
[1735161068880,2.3074,3467.1,3466.4,0.7686]
[1735161069226,2.30747,3467.0,3466.4,0.7686]
[1735161069893,0.7797,3467.2,3466.4,0.7686]
[1735161069894,2.30733,3467.2,3466.4,0.7686]
[1735161070070,1.0797,3467.5,3466.4,0.7686]
[1735161070418,2.30755,3466.9,3466.4,0.7686]
[1735161070978,2.30764,3466.8,3466.4,0.7686]
[1735161071420,2.30733,3467.2,3466.4,0.7686]
[1735161071632,2.30787,3466.4,3465.8,0.7686]
[1735161072922,2.30796,3466.3,3465.8,0.7686]
[1735161073295,2.30807,3466.1,3465.2,0.7686]
[1735161074271,2.30821,3465.9,3465.2,0.7686]
[1735161074426,0.230796,3466.3,3465.2,0.7686]
[1735161074427,2.30828,3465.8,3465.2,0.7686]
[1735161075684,2.30834,3465.7,3464.5,0.7983]
[1735161075890,2.30834,3465.7,3464.6,0.57600748]
[1735161076179,2.30847,3465.5,3464.6,0.57600748]
[1735161076333,2.30847,3465.5,3464.5,3.7983]
[1735161076531,4.96069482,3466.1,3464.9,4.96144482]
[1735161076532,2.30813,3466.1,3464.9,4.96144482]
[1735161076731,2.30813,3466.1,3465.0,0.7983]
[1735161077165,2.30814,3466.0,3465.0,0.7983]
[1735161078196,1.007396,3466.3,3465.0,3.10709]
[1735161078338,0.7766,3466.6,3465.2,0.7983]
[1735161078542,3.0,3466.5,3465.2,0.7983]
[1735161078790,0.7766,3466.6,3465.2,0.7983]
[1735161078942,3.0,3466.5,3465.2,0.7983]
[1735161079290,2.30822,3465.9,3465.2,0.7983]
[1735161081131,2.30806,3466.2,3465.3,0.02885722]
[1735161081282,2.30793,3466.3,3465.2,1.14338848]
[1735161081696,3.7766,3466.6,3465.2,1.14338848]
[1735161081895,2.30799,3466.3,3465.3,0.34521185]
[1735161083314,2.30801,3466.2,3465.3,0.34521185]
[1735161083483,2.30801,3466.2,3465.2,1.14338848]
[1735161086954,0.7766,3466.9,3465.7,3.45088482]
[1735161087119,0.14114262,3467.2,3465.7,3.45088482]
[1735161087120,2.30753,3467.0,3465.9,0.7983]
[1735161087304,2.30753,3467.0,3466.0,0.60476183]
[1735161087656,2.30743,3467.1,3466.1,0.7983]
[1735161087955,3.08378,3467.5,3466.1,0.7983]
[1735161088244,2.30747,3467.0,3466.1,0.7983]
[1735161088953,0.58396605,3467.4,3466.1,0.82714736]
[1735161089119,0.48220531,3467.3,3466.1,2.65258482]
[1735161089324,2.3071,3467.6,3466.5,0.7983]
[1735161089527,2.30714,3467.5,3466.5,0.7983]
[1735161090043,2.30722,3467.4,3466.5,0.7983]
[1735161090244,1.154237,3467.9,3466.5,0.7983]
[1735161090453,2.30774,3466.6,3465.8,0.7641]
[1735161090963,2.30759,3466.9,3465.8,0.7641]
[1735161091265,2.30761,3466.8,3465.8,0.7641]
[1735161092466,3.0,3467.2,3465.8,0.7641]
[1735161092683,2.3076,3466.8,3465.8,0.7641]
[1735161093181,3.0,3467.2,3465.9,0.7641]
[1735161093182,2.30754,3466.9,3465.9,0.7641]
[1735161093363,2.30774,3466.6,3465.9,0.7641]
[1735161093677,3.0,3467.2,3465.9,0.7641]
[1735161093890,2.30787,3466.4,3465.9,0.7641]
[1735161094179,2.30808,3466.1,3465.9,0.7641]
[1735161094386,2.30813,3466.0,3465.3,2.65258482]
[1735161094588,2.3082,3465.9,3465.4,0.7641]
[1735161098060,0.230808,3466.1,3465.4,0.7641]
[1735161100115,2.30784,3466.5,3465.4,0.7641]
[1735161100410,2.30763,3466.8,3465.5,2.3084]
[1735161100567,2.30767,3466.7,3465.7,0.7641]
[1735161100768,2.30753,3466.9,3465.9,0.7641]
[1735161101793,2.30741,3467.1,3466.1,2.65258482]
[1735161101967,2.30741,3467.1,3466.2,0.7641]
[1735161103058,0.5790413,3467.4,3466.2,0.7641]
[1735161103265,2.30761,3466.8,3466.2,0.7641]
[1735161104715,0.230761,3466.8,3465.4,0.7944]
[1735161104914,2.30802,3466.2,3465.4,0.7944]
[1735161105218,2.30803,3466.2,3465.4,0.7944]
[1735161106096,2.30777,3466.6,3465.4,0.7944]
[1735161106268,2.30805,3466.2,3465.4,0.7944]
[1735161106686,2.30815,3466.0,3465.4,0.7944]
[1735161107715,2.30801,3466.2,3465.4,0.7944]
[1735161108718,2.30807,3466.1,3465.4,0.7944]
[1735161110924,2.30826,3465.9,3465.4,0.7944]
[1735161111136,2.3084,3465.6,3465.4,0.7944]
[1735161111431,2.30846,3465.5,3465.4,0.7944]
[1735161112086,3.09168,3466.3,3465.4,0.7944]
[1735161112332,0.7837,3466.3,3465.4,0.7944]
[1735161112534,0.22944084,3466.2,3465.4,0.7944]
[1735161112885,0.31465781,3466.4,3465.4,0.7944]
[1735161113092,2.62253781,3466.4,3465.4,0.7944]
[1735161113404,2.30794,3466.3,3465.4,0.7944]
[1735161113740,1.19605054,3466.5,3465.7,0.7944]
[1735161114037,1.19605054,3466.3,3465.7,0.7944]
[1735161114330,1.19605054,3466.3,3465.8,0.34469848]
[1735161114485,1.19605054,3466.3,3465.9,0.7944]
[1735161114883,1.79407582,3466.5,3465.9,0.7944]
[1735161115133,1.19605054,3466.9,3465.9,0.7944]
[1735161115316,2.30788,3466.4,3465.9,0.7944]
[1735161115912,2.30795,3466.3,3465.9,0.7944]
[1735161117220,2.308,3466.2,3465.9,0.7944]
[1735161117632,2.30807,3466.1,3465.9,0.7944]
[1735161118594,2.30815,3466.0,3465.3,0.7944]
[1735161118798,3.50380054,3466.6,3465.3,0.7944]
[1735161119034,1.19605054,3466.6,3465.3,0.7944]
[1735161119255,2.30834,3465.7,3465.3,0.7944]
[1735161119579,2.3084,3465.6,3465.3,0.7944]
[1735161123780,2.35080254,3466.0,3465.3,0.7944]
[1735161123992,1.19605054,3466.0,3465.5,2.65258482]
[1735161124274,1.19605054,3466.0,3465.6,0.7878]
[1735161124440,1.19605054,3466.1,3465.6,0.7878]
[1735161125328,2.01855054,3466.1,3465.2,0.7878]
[1735161125642,2.30837,3465.7,3465.2,0.7878]
[1735161128177,2.30821,3465.9,3465.2,0.7878]
[1735161129447,0.58995975,3466.2,3465.2,0.7878]
[1735161129633,2.30839,3465.7,3465.2,0.7878]
[1735161131473,3.50423054,3466.0,3465.2,3.44038482]
[1735161131674,3.50423054,3466.0,3465.5,2.65258482]
[1735161131675,1.19605054,3466.0,3465.5,2.65258482]
[1735161131878,3.50413054,3466.1,3465.4,0.8074]
[1735161132235,1.19605054,3466.1,3465.4,0.8074]
[1735161133174,1.19605054,3466.4,3465.6,2.65258482]
[1735161133370,1.19605054,3466.4,3465.7,0.8074]
[1735161134268,5.3078,3466.5,3465.7,0.8074]
[1735161134487,2.3078,3466.5,3465.7,0.8074]
[1735161134832,2.30794,3466.3,3465.7,0.8074]
[1735161136077,2.30778,3466.6,3465.7,1.15339848]
[1735161136279,2.30783,3466.5,3465.7,1.15339848]
[1735161136610,2.30788,3466.4,3465.7,1.15339848]
[1735161137119,1.19605054,3466.5,3465.8,1.3721]
[1735161137278,1.19605054,3466.5,3466.1,0.8221]
[1735161137809,2.308,3466.2,3465.7,0.8221]
[1735161138010,1.19605054,3466.5,3466.3,1.3721]
[1735161138215,1.19605054,3466.9,3466.5,0.8221]
[1735161138513,1.19605054,3466.9,3466.6,0.55]
[1735161140110,5.27778597,3467.4,3466.6,0.55]
[1735161140111,2.30721,3467.4,3466.6,0.55]
[1735161140269,2.30721,3467.4,3466.6,1.20248148]
[1735161141108,1.19605054,3467.6,3466.6,1.20248148]
[1735161141302,3.50318054,3467.6,3466.6,1.20248148]
[1735161141488,2.30713,3467.6,3466.6,1.20248148]
[1735161142559,2.30715,3467.5,3466.6,1.20248148]
[1735161142766,2.30721,3467.4,3466.6,1.20248148]
[1735161143287,2.30721,3467.4,3466.6,36.20248148]
[1735161143482,2.30721,3467.4,3466.7,2.84628631]
[1735161145071,5.3069,3467.9,3466.7,2.84628631]
[1735161145375,2.30713,3467.6,3466.7,2.84628631]
[1735161146451,2.30713,3467.6,3466.6,1.20248148]
[1735161146777,2.30713,3467.6,3466.7,35.0]
[1735161147131,3.7731,3468.0,3466.5,0.8221]
[1735161147379,2.30739,3467.2,3466.5,0.8221]
[1735161148874,2.30739,3467.2,3466.6,35.0]
[1735161151202,0.230739,3467.2,3466.5,0.8221]
[1735161151500,0.8133,3467.5,3466.2,0.8193]
[1735161151695,2.30807,3466.1,3465.9,35.8193]
[1735161151879,2.30807,3466.1,3465.9,0.8193]
[1735161152252,0.8133,3466.8,3466.0,35.0]
[1735161152598,2.30794,3466.3,3465.9,0.8193]
[1735161153015,2.30794,3466.3,3465.9,35.8193]
[1735161153571,2.30802,3466.2,3465.9,35.8193]
[1735161153773,2.30812,3466.1,3465.6,0.8193]
[1735161153979,0.230812,3466.0,3465.6,0.8193]
[1735161154233,0.8133,3466.2,3465.6,0.8193]
[1735161154373,0.8133,3466.2,3465.1,35.8193]
[1735161154889,2.30806,3466.1,3465.1,35.8193]
[1735161155095,2.30822,3465.9,3465.1,35.8193]
[1735161155322,2.30822,3465.9,3465.2,2.84628631]
[1735161155811,0.8133,3466.2,3465.2,2.84628631]
[1735161156113,2.30827,3465.8,3465.1,35.8193]
[1735161157285,2.30835,3465.7,3465.1,35.8193]
[1735161158171,0.8133,3466.5,3465.4,2.65258482]
[1735161158406,2.30793,3466.3,3465.5,0.8193]
[1735161158588,2.30805,3466.2,3465.5,0.8193]
[1735161159122,5.30805,3466.2,3465.5,0.8193]
[1735161159791,2.30809,3466.1,3465.6,35.0]
[1735161160178,2.30813,3466.0,3465.6,35.0]
[1735161160378,3.0,3466.2,3465.6,35.0]
[1735161160685,2.30828,3465.8,3465.6,35.0]
[1735161164034,2.30828,3465.8,3465.2,0.8193]
[1735161164412,2.30828,3465.8,3465.3,35.0]
[1735161167531,2.30807,3466.1,3465.3,35.0]
[1735161167684,3.462812,3466.1,3465.3,35.0]
[1735161167885,3.462812,3466.1,3465.5,0.7856]
[1735161167886,1.154742,3466.1,3465.5,0.7856]
[1735161168122,2.30794,3466.3,3465.5,0.7856]
[1735161168485,2.30794,3466.3,3465.6,35.0]
[1735161173561,2.30801,3466.2,3465.6,35.0]
[1735161174252,2.30801,3466.2,3465.6,37.84628631]
[1735161175241,2.30801,3466.2,3465.6,35.0]
[1735161175407,2.30801,3466.2,3465.5,0.7856]
[1735161177158,2.30807,3466.1,3465.5,0.7856]
[1735161177924,3.07051,3465.9,3465.1,35.7856]
[1735161180352,2.92900242,3466.6,3465.5,3.20258482]
[1735161180551,2.35063754,3466.6,3465.6,3.44139848]
[1735161180758,4.65837754,3466.6,3465.6,1.13305848]
[1735161180957,2.30793,3466.4,3465.7,35.0]
[1735161181184,1.154587,3466.6,3465.7,35.0]
[1735161181354,2.30794,3466.3,3465.7,35.0]
[1735161181707,2.30804,3466.2,3465.7,35.0]
[1735161181854,3.06934,3466.2,3465.7,35.0]
[1735161182401,2.30833,3465.8,3465.3,0.8128]
[1735161182602,5.30806,3466.1,3465.0,0.8128]
[1735161182798,2.30825,3465.9,3465.0,0.8128]
[1735161182973,2.30825,3465.9,3465.1,35.0]
[1735161183799,2.30834,3465.7,3465.1,35.0]
[1735161184597,2.30824,3465.9,3465.1,35.0]
[1735161184798,3.57738127,3466.0,3465.1,35.0]
[1735161184799,2.30862,3465.3,3465.1,35.0]
[1735161185155,2.30866,3465.2,3465.1,35.0]
[1735161185357,0.7613,3464.9,3464.3,0.8128]
[1735161185557,2.30907,3464.6,3464.2,1.2073791]
[1735161185777,2.30907,3464.6,3464.2,36.2073791]
[1735161186263,3.7613,3464.9,3464.2,1.2073791]
[1735161186609,3.07056,3464.3,3464.2,1.2073791]
[1735161186758,6.07056,3464.3,3464.2,1.2073791]
[1735161187005,2.30955,3463.9,3463.7,0.1739421]
[1735161187251,2.3096,3463.8,3463.7,0.1739421]
[1735161188009,3.0709,3463.8,3463.7,0.1739421]
[1735161188214,6.0709,3463.8,3463.7,0.1739421]
[1735161188617,2.31016,3463.0,3462.5,35.0]
[1735161188832,2.3103,3462.8,3462.5,35.0]
[1735161189626,2.3103,3462.8,3462.3,1.2073791]
[1735161189849,0.7613,3463.0,3462.3,1.2073791]
[1735161190048,3.07145,3463.0,3462.3,35.0]
[1735161190346,2.31023,3462.9,3462.3,35.0]
[1735161191262,2.31027,3462.8,3462.3,35.0]
[1735161191650,1.65689332,3463.0,3462.3,35.0]
[1735161191961,0.7613,3463.0,3462.3,35.0]
[1735161192364,2.31023,3462.9,3462.3,35.0]
[1735161193240,0.7613,3463.0,3462.0,0.55]
[1735161193575,2.31007,3463.1,3462.0,0.55]
[1735161193736,2.31007,3463.1,3462.6,35.0]
[1735161194372,3.7613,3463.3,3462.6,35.0]
[1735161194564,3.0,3463.2,3462.6,35.0]
[1735161194879,2.30997,3463.3,3462.7,0.8017]
[1735161195059,3.0,3463.5,3462.7,0.8017]
[1735161195388,5.30982,3463.5,3462.7,0.8017]
[1735161195883,3.0,3463.5,3462.7,0.8017]
[1735161196063,2.30989,3463.4,3462.7,0.8017]
[1735161197179,0.7044012,3463.5,3462.6,35.0]
[1735161197388,2.31014,3463.0,3462.6,35.0]
[1735161198585,1.155704,3462.9,3462.6,35.0]
[1735161200280,1.155704,3462.9,3462.2,0.8017]
[1735161200697,3.465944,3462.9,3462.2,0.8017]
[1735161200827,1.5022984,3462.9,3462.2,0.8017]
[1735161201027,1.5022984,3462.9,3461.4,3.8017]
[1735161201028,0.8053,3462.8,3461.4,3.8017]
[1735161201482,0.8053,3462.8,3461.6,35.0]
[1735161201689,2.31055,3462.4,3461.6,35.0]
[1735161202024,0.8053,3462.8,3461.6,35.0]
[1735161202025,3.0,3462.7,3461.6,35.0]
[1735161202371,2.31048,3462.5,3461.6,35.0]
[1735161202570,3.18731648,3462.5,3461.6,35.0]
[1735161202737,2.31056,3462.4,3461.6,35.0]
[1735161202936,3.11625,3461.8,3460.7,0.00288]
[1735161203171,3.0,3461.4,3460.7,0.00288]
[1735161203375,3.0,3461.0,3460.7,0.00288]
[1735161204233,0.8053,3460.9,3460.2,0.1739421]
[1735161204697,2.31173,3460.6,3460.2,0.1739421]
[1735161206297,2.31173,3460.6,3460.5,1.25e-06]
[1735161206298,6.11703,3460.6,3460.5,1.25e-06]
[1735161206506,2.31193,3460.3,3460.2,3.35e-06]
[1735161206686,7.96451482,3460.3,3460.2,3.35e-06]
[1735161208210,3.11723,3460.3,3458.6,0.36884955]
[1735161208353,2.31244,3459.6,3458.6,0.36884955]
[1735161208858,2.31224,3459.9,3458.7,3.1147]
[1735161209067,2.31224,3459.9,3458.8,0.34835496]
[1735161209279,2.31224,3459.9,3458.8,35.34835496]
[1735161209506,3.0,3460.2,3458.9,0.55]
[1735161209726,0.8053,3460.3,3459.0,0.02890651]
[1735161210085,2.3121,3460.1,3459.5,35.0]
[1735161210427,2.92388,3460.0,3459.5,35.0]
[1735161211015,2.31224,3459.9,3459.5,35.0]
[1735161211883,2.31227,3459.8,3459.5,35.0]
[1735161212122,2.31213,3460.1,3459.5,35.0]
[1735161212694,3.8053,3460.3,3459.5,35.0]
[1735161213102,2.31222,3459.9,3459.5,35.0]
[1735161213822,2.31206,3460.2,3459.5,35.0]
[1735161214022,3.611736,3460.1,3459.5,35.0]
[1735161214226,3.0,3460.5,3459.5,35.8206]
[1735161214427,5.3118,3460.5,3459.5,35.8206]
[1735161214593,3.57191591,3460.6,3459.5,38.13305]
[1735161214906,5.31167,3460.7,3459.5,38.13305]
[1735161215102,3.308507,3460.6,3459.5,35.8206]
[1735161215292,5.31167,3460.7,3459.5,35.8206]